bitfinex-derivatives/quotes_ETHF0:USTF0_20241207
["timestamp","ask_amount","ask_price","bid_price","bid_amount"]
[1733576103860,0.17488,3998.1,3998.0,0.3866]
[1733576104164,4.0014,3998.2,3997.8,0.375]
[1733576104356,1.0741456,3997.9,3997.8,0.375]
[1733576104855,1.0741456,3997.9,3997.8,41.175]
[1733576105360,1.0741456,3997.9,3997.8,0.375]
[1733576105956,0.8992556,3997.9,3997.4,0.3793]
[1733576106263,1.0741556,3997.5,3997.4,0.3793]
[1733576108857,0.43728,3997.4,3996.7,3.38274]
[1733576109054,0.17493,3997.0,3996.7,3.2078]
[1733576109556,0.1650464,3997.0,3996.7,3.2078]
[1733576110659,1.064302,3997.0,3996.5,0.3959]
[1733576110866,1.064302,3997.0,3996.8,0.17493]
[1733576111059,1.064302,3997.0,3996.9,0.39628]
[1733576111268,1.064302,3997.0,3996.9,0.80768]
[1733576112158,0.58772,3997.1,3997.0,0.17493]
[1733576112361,0.8992556,3997.5,3996.9,0.80768]
[1733576112564,0.645,3997.6,3996.9,0.80768]
[1733576112565,0.8992556,3997.2,3996.9,0.80768]
[1733576112865,0.8992556,3997.2,3997.1,0.17492]
[1733576113260,0.8992556,3997.6,3996.9,0.80768]
[1733576113454,0.8992556,3997.6,3997.5,0.1749]
[1733576114563,1.0741556,3997.6,3997.5,0.1749]
[1733576114762,0.8992556,3997.6,3997.5,0.1749]
[1733576116165,0.8992556,3997.6,3997.2,3.6138]
[1733576116166,0.8992556,3997.9,3997.8,0.17489]
[1733576118767,0.17488,3998.2,3998.1,0.17487]
[1733576118957,0.17488,3998.1,3998.0,0.17488]
[1733576119163,1.0741256,3998.2,3998.1,0.17488]
[1733576119758,0.8992556,3998.2,3998.1,0.17488]
[1733576124665,0.8992556,3998.2,3997.6,3.2078]
[1733576124967,0.17488,3998.0,3997.9,0.17488]
[1733576125668,0.57058,3998.1,3998.0,0.17488]
[1733576126069,0.3957,3998.1,3998.0,0.17488]
[1733576126266,1.2949556,3998.1,3998.0,0.17488]
[1733576127067,0.3866,3998.4,3998.3,0.17487]
[1733576127269,1.9308556,3998.4,3998.3,0.17487]
[1733576128162,1.9308556,3998.4,3998.2,0.17487]
[1733576128366,0.17487,3998.3,3998.2,0.17487]
[1733576129468,0.17487,3998.3,3998.1,0.17487]
[1733576130169,0.17487,3998.2,3998.1,0.17487]
[1733576130365,2.94620965,3998.3,3997.6,3.2078]
[1733576130674,0.8992556,3997.9,3997.8,0.17489]
[1733576130871,0.8992556,3997.9,3997.8,0.26857483]
[1733576131076,1.2948556,3997.9,3997.8,0.26857483]
[1733576131271,1.4697456,3997.9,3997.8,0.09368483]
[1733576131570,1.8761456,3997.9,3997.8,0.09368483]
[1733576131775,1.8761456,3997.9,3997.8,0.17489]
[1733576132170,1.7012556,3997.9,3997.8,0.26858033]
[1733576132467,1.0741256,3998.2,3998.1,0.17487]
[1733576133872,0.17488,3998.1,3998.0,0.17488]
[1733576134069,0.17488,3998.0,3997.9,0.97278]
[1733576134263,0.17488,3998.0,3997.9,0.17488]
[1733576134473,3.84546525,3998.2,3997.6,3.2078]
[1733576134670,0.7866,3998.3,3997.7,0.12765075]
[1733576134671,1.0741456,3997.8,3997.7,0.12765075]
[1733576134878,1.0741456,3997.8,3997.7,0.17489]
[1733576135070,0.8992556,3997.8,3997.6,3.2078]
[1733576135272,0.41,3997.7,3997.1,0.8082]
[1733576135471,0.17492,3997.1,3997.0,3.2078]
[1733576135672,0.8992556,3997.2,3996.9,0.56493]
[1733576135878,0.58493,3997.0,3996.9,0.56493]
[1733576137573,0.58493,3997.0,3996.9,0.39]
[1733576137769,0.58493,3997.0,3996.9,0.56493]
[1733576139182,0.58493,3997.0,3996.9,0.39]
[1733576139774,0.58493,3997.0,3996.9,0.56493]
[1733576140175,0.58493,3997.0,3996.9,0.39]
[1733576140378,0.41,3997.0,3996.7,40.8]
[1733576140678,0.17493,3996.8,3996.7,40.97493]
[1733576141882,0.17493,3996.8,3996.7,41.10259145]
[1733576142384,0.17493,3996.8,3996.7,41.19630924]
[1733576142577,0.17493,3996.8,3996.7,41.06864779]
[1733576142774,0.17493,3996.8,3996.7,41.10260009]
[1733576142974,0.17493,3996.8,3996.7,41.19631665]
[1733576145986,0.17493,3996.8,3996.7,41.19632665]
[1733576146181,6.15400965,3997.3,3996.7,41.02133404]
[1733576146385,0.17491,3997.4,3997.3,0.17491]
[1733576146586,0.17492,3997.2,3997.1,0.17492]
[1733576146784,0.17492,3997.2,3997.1,0.39616574]
[1733576147085,3.9953,3997.7,3997.1,0.22124574]
[1733576147391,0.17491,3997.3,3997.2,0.39615574]
[1733576148381,0.7875,3997.7,3997.2,0.22124574]
[1733576148586,0.17491,3997.4,3997.3,0.39615574]
[1733576148883,0.1749,3997.5,3997.4,0.1749]
[1733576149082,0.1749,3997.6,3997.5,0.1749]
[1733576149283,0.403,3997.7,3997.0,3.92360759]
[1733576149582,0.3845,3998.0,3997.5,0.3783]
[1733576149781,0.17489,3997.8,3997.7,0.17489]
[1733576151589,0.17489,3997.9,3997.8,0.17489]
[1733576152586,0.17489,3997.8,3997.7,0.17489]
[1733576154382,0.17489,3997.8,3997.7,0.26858034]
[1733576154788,0.17489,3997.8,3997.7,0.26857841]
[1733576155179,0.17489,3997.8,3997.7,0.26858215]
[1733576155581,0.17489,3997.8,3997.7,0.17489]
[1733576155988,0.17489,3997.8,3997.7,0.2685779]
[1733576156184,0.17489,3997.8,3997.7,0.17489]
[1733576156886,2.34206869,3998.1,3997.6,3.92360759]
[1733576157081,0.17489,3997.8,3997.7,0.30251783]
[1733576157287,0.17489,3997.8,3997.7,0.22132129]
[1733576157491,0.17489,3997.8,3997.7,0.39621129]
[1733576157889,3.38338965,3998.4,3997.7,0.39621129]
[1733576157890,3.33950965,3998.6,3997.7,7.35272888]
[1733576158190,0.3933,3998.6,3998.5,0.17486]
[1733576158486,0.56816,3998.6,3998.5,0.17486]
[1733576158888,0.56985,3998.8,3998.2,0.382]
[1733576159089,0.56985,3998.8,3998.3,0.22124146]
[1733576159090,1.47027421,3998.8,3998.3,0.22124146]
[1733576159289,4.03164,3998.9,3998.8,0.17485]
[1733576159492,3.38264,3998.9,3998.8,0.17485]
[1733576159690,3.2078,3998.9,3998.8,0.17485]
[1733576159995,2.94620965,3999.2,3998.6,4.10822421]
[1733576159996,0.17483,3999.2,3998.6,4.10822421]
[1733576160186,0.17483,3999.2,3999.1,0.17483]
[1733576160586,0.17483,3999.2,3998.7,0.4028]
[1733576160587,0.3809,3999.3,3998.7,0.4028]
[1733576160794,0.3809,3999.3,3999.0,0.17484]
[1733576160795,0.17484,3999.1,3999.0,0.17484]
[1733576160989,0.17484,3999.0,3998.9,0.17484]
[1733576161193,0.17483,3999.1,3999.0,0.17484]
[1733576162089,0.17483,3999.2,3999.1,0.17483]
[1733576162396,0.17484,3999.1,3999.0,0.17483]
[1733576163296,0.3809,3999.3,3998.8,0.3858]
[1733576163498,0.17482,3999.4,3999.3,0.17482]
[1733576163696,0.3945,3999.7,3999.0,3.2078]
[1733576163896,0.3945,3999.7,3999.4,0.17482]
[1733576163897,0.17482,3999.5,3999.4,0.17482]
[1733576164108,0.17482,3999.4,3999.3,0.17482]
[1733576164398,0.3945,3999.7,3999.1,0.411]
[1733576164594,0.3945,3999.7,3999.6,0.17481]
[1733576164900,0.17481,3999.6,3999.5,0.17481]
[1733576166103,0.3945,3999.7,3999.2,0.17483]
[1733576166104,0.17483,3999.3,3999.2,0.17483]
[1733576166412,0.3945,3999.7,3999.1,0.411]
[1733576166806,0.17483,3999.1,3999.0,3.2078]
[1733576167815,0.17483,3999.1,3999.0,3.38264]
[1733576168106,0.17483,3999.1,3999.0,3.2078]
[1733576168505,0.17483,3999.2,3999.0,3.2078]
[1733576168807,0.17483,3999.2,3999.0,3.38264]
[1733576169011,0.17482,3999.4,3999.1,0.17483]
[1733576169210,0.3945,3999.7,3999.0,3.2078]
[1733576169511,0.17483,3999.3,3999.1,0.3851]
[1733576169912,0.17483,3999.3,3999.1,0.55993]
[1733576170112,0.3945,3999.7,3999.1,0.3851]
[1733576170311,0.17483,3999.2,3999.1,0.3851]
[1733576172410,0.83153,3999.7,3998.9,3.2078]
[1733576172610,0.17484,3999.0,3998.9,3.2078]
[1733576173114,0.83153,3999.7,3998.9,3.2078]
[1733576173313,0.17484,3999.1,3998.9,3.2078]
[1733576173512,0.17484,3999.1,3998.9,3.38264]
[1733576173712,0.3945,3999.7,3998.9,3.2078]
[1733576173916,0.17484,3999.0,3998.9,3.2078]
[1733576174216,0.17484,3999.0,3998.9,3.38264]
[1733576174813,0.17484,3999.0,3998.9,3.2078]
[1733576176620,0.17486,3998.6,3998.5,0.17486]
[1733576176819,3.2078,3999.1,3998.4,0.17486]
[1733576176820,0.17486,3998.5,3998.4,0.17486]
[1733576177318,0.7917,3998.9,3997.9,3.2078]
[1733576177319,0.43712,3998.8,3997.9,3.2078]
[1733576177519,0.17488,3998.0,3997.9,0.17488]
[1733576177715,0.17489,3997.9,3997.8,0.57599]
[1733576178210,0.17489,3997.9,3997.8,0.4011]
[1733576178614,0.43716,3998.5,3997.5,3.8548]
[1733576178815,0.1749,3997.7,3997.6,0.1749]
[1733576179010,0.3976,3997.8,3997.5,3.2078]
[1733576179211,0.1749,3997.6,3997.5,3.2078]
[1733576179412,0.1749,3997.6,3997.5,3.33503042]
[1733576179717,0.1749,3997.6,3997.5,3.6035083]
[1733576180119,0.1749,3997.6,3997.5,3.4286083]
[1733576180622,0.1749,3997.6,3997.5,3.30137788]
[1733576180824,0.1749,3997.6,3997.5,3.2078]
[1733576181221,0.3976,3997.8,3997.3,40.97491]
[1733576181222,0.17491,3997.4,3997.3,40.97491]
[1733576181420,0.17491,3997.4,3997.3,41.02081259]
[1733576182324,0.17491,3997.4,3997.3,40.89358394]
[1733576182622,0.17491,3997.4,3997.3,40.8]
[1733576182920,0.17491,3997.3,3997.2,0.4046]
[1733576185221,0.17492,3997.1,3997.0,3.79252]
[1733576185421,0.17492,3997.1,3997.0,0.67827215]
[1733576185621,0.17492,3997.1,3997.0,41.47827215]
[1733576185825,0.17492,3997.1,3997.0,41.60543967]
[1733576186020,0.4012,3997.2,3997.1,0.17492]
[1733576186222,3.2078,3997.7,3997.5,0.1749]
[1733576186223,0.1749,3997.6,3997.5,0.1749]
[1733576186923,0.1749,3997.6,3997.4,0.1749]
[1733576187325,0.1749,3997.6,3997.5,0.3954]
[1733576187522,0.1749,3997.6,3997.5,0.5703]
[1733576187822,0.17491,3997.3,3997.2,0.8093]
[1733576188125,0.17491,3997.3,3997.2,0.90281995]
[1733576188327,0.17491,3997.3,3997.2,0.8093]
[1733576188719,0.17491,3997.3,3997.2,0.98422]
[1733576189224,0.17491,3997.3,3997.2,41.78422]
[1733576189430,0.17491,3997.3,3997.2,41.6093]
[1733576189726,0.17491,3997.3,3997.2,41.78422]
[1733576190631,0.17491,3997.3,3997.2,41.87769659]
[1733576190926,0.17491,3997.3,3997.2,0.98422]
[1733576191329,0.4012,3997.9,3997.2,0.90277624]
[1733576191517,0.4012,3997.9,3997.2,0.98421]
[1733576192126,0.17491,3997.3,3997.2,0.8093]
[1733576194724,0.17491,3997.3,3997.2,0.4024]
[1733576196630,0.17491,3997.3,3997.2,0.49587218]
[1733576196824,0.17491,3997.3,3997.2,0.4024]
[1733576197424,0.17491,3997.3,3997.2,0.49588481]
[1733576197928,0.17491,3997.3,3997.2,0.67080481]
[1733576198330,0.17491,3997.4,3997.3,0.17491]
[1733576198528,0.17491,3997.4,3997.2,0.49588481]
[1733576198529,0.17491,3997.3,3997.2,0.4024]
[1733576198727,0.17491,3997.3,3997.2,0.09349523]
[1733576199129,0.17492,3997.2,3997.1,0.3954]
[1733576199331,0.17492,3997.2,3997.1,0.09352576]
[1733576199527,0.43725,3997.6,3997.0,3.2078]
[1733576199736,0.58062,3997.1,3997.0,3.2078]
[1733576200733,0.17491,3997.3,3997.2,0.17491]
[1733576200931,0.17491,3997.3,3997.2,0.26845553]
[1733576201130,0.1749,3997.6,3997.5,0.1749]
[1733576201332,0.1749,3997.6,3997.5,40.9749]
[1733576201528,0.1749,3997.6,3997.5,41.06847751]
[1733576201735,0.1749,3997.6,3997.5,0.1749]
[1733576203134,0.787,3998.0,3997.3,40.8]
[1733576203135,0.4057,3998.0,3997.3,40.8]
[1733576203337,0.17489,3997.9,3997.8,0.17489]
[1733576203633,0.58059,3998.0,3997.9,0.17489]
[1733576204038,0.17489,3997.9,3997.8,0.17489]
[1733576204536,0.17489,3997.9,3997.8,1.07548477]
[1733576204726,0.17489,3997.9,3997.8,0.90059477]
[1733576205035,0.4057,3998.0,3997.4,3.2078]
[1733576205228,0.17489,3997.8,3997.7,1.07548477]
[1733576205430,0.17489,3997.8,3997.7,1.16918478]
[1733576206329,0.17489,3997.8,3997.7,0.39356351]
[1733576206526,0.17489,3997.8,3997.7,0.26859001]
[1733576207136,0.17489,3997.8,3997.7,0.09370001]
[1733576208236,0.17489,3997.8,3997.7,0.21877124]
[1733576208430,0.1749,3997.5,3997.4,3.2078]
[1733576208631,0.1749,3997.5,3997.4,3.42677868]
[1733576209339,0.1749,3997.5,3997.4,3.2078]
[1733576209546,0.1749,3997.5,3997.4,3.42678301]
[1733576211537,0.1749,3997.5,3997.4,0.21898301]
[1733576211843,0.1749,3997.5,3997.4,0.09389892]
[1733576212039,1.07549477,3997.5,3997.4,0.09389892]
[1733576212247,0.17493,3996.8,3996.7,41.70059477]
[1733576212439,0.17493,3996.8,3996.7,41.91958104]
[1733576212746,0.17493,3996.8,3996.7,1.11957531]
[1733576213639,0.17493,3996.8,3996.7,1.29451531]
[1733576213846,0.17493,3996.8,3996.7,1.11957531]
[1733576215337,0.17493,3996.8,3996.7,1.29451531]
[1733576215848,0.17493,3996.8,3996.7,1.11957531]
[1733576216143,0.17493,3996.8,3996.7,1.29451531]
[1733576216336,0.17493,3996.8,3996.7,1.29444313]
[1733576219146,0.3748,3997.2,3996.7,1.11950313]
[1733576219342,3.35980965,3997.4,3996.8,0.21890836]
[1733576219543,0.17493,3997.1,3997.0,0.90059477]
[1733576219741,0.17493,3997.1,3997.0,1.16935369]
[1733576219947,0.17493,3997.1,3997.0,0.99442369]
[1733576220642,3.35980965,3997.4,3997.0,0.99442369]
[1733576220643,2.94620965,3997.3,3997.0,0.99442369]
[1733576220847,2.94620965,3997.5,3997.1,0.46842892]
[1733576221039,0.1749,3997.5,3997.4,0.1749]
[1733576221343,0.1749,3997.5,3997.4,0.39368146]
[1733576221548,0.1749,3997.5,3997.4,0.79488146]
[1733576221947,0.1749,3997.5,3997.4,0.79487923]
[1733576222335,0.4107,3997.7,3997.4,0.61997923]
[1733576222545,0.1749,3997.6,3997.5,0.39367923]
[1733576223145,0.1749,3997.6,3997.5,0.79187923]
[1733576224355,0.1749,3997.6,3997.5,0.66692892]
[1733576224538,3.12110965,3997.6,3997.5,0.49202892]
[1733576224741,3.12110965,3997.6,3997.5,0.66692892]
[1733576224943,0.1749,3997.6,3997.5,4.5917813]
[1733576225353,0.1749,3997.6,3997.5,4.49795238]
[1733576225943,0.1749,3997.6,3997.5,5.12225384]
[1733576226151,0.5856,3997.7,3997.6,0.1749]
[1733576226352,0.5856,3997.7,3997.6,5.00564479]
[1733576226857,3.38267,3998.2,3998.1,0.17488]
[1733576227157,3.38267,3998.2,3997.6,5.57469575]
[1733576227158,0.17488,3998.1,3998.0,4.10485425]
[1733576227452,0.17488,3998.1,3998.0,4.72383523]
[1733576227751,0.17488,3998.1,3998.0,4.58514081]
[1733576227946,0.17488,3998.1,3998.0,5.1102079]
[1733576228553,0.17488,3998.1,3998.0,5.11011211]
[1733576228756,0.17488,3998.1,3998.0,0.65565778]
[1733576229057,0.17488,3998.1,3998.0,4.58458449]
[1733576229257,0.17488,3998.1,3998.0,4.49080671]
[1733576229459,0.17488,3998.1,3998.0,4.58450611]
[1733576229658,0.17488,3998.1,3998.0,4.4907659]
[1733576231964,0.3811,3998.5,3998.0,4.40960988]
[1733576232170,0.17487,3998.2,3998.1,0.26859398]
[1733576232366,0.17487,3998.2,3998.1,0.2685803]
[1733576232668,0.17487,3998.2,3998.1,0.17487]
[1733576233063,0.17488,3998.1,3998.0,0.387]
[1733576233267,0.17488,3998.1,3997.7,3.5854]
[1733576233268,0.17489,3997.8,3997.7,3.2078]
[1733576233571,0.17489,3997.8,3997.7,3.30150633]
[1733576234072,0.56219,3997.8,3997.7,3.30150633]
[1733576234466,0.17489,3997.8,3997.7,3.47639633]
[1733576235670,0.17489,3997.8,3997.7,3.30150633]
[1733576235871,0.17489,3997.8,3997.7,3.47639633]
[1733576236468,0.17489,3997.8,3997.7,3.30150633]
[1733576236672,2.94045984,3997.8,3997.4,0.7973]
[1733576236970,0.1749,3997.6,3997.5,0.3936705]
[1733576237167,0.1749,3997.6,3997.5,0.26883266]
[1733576238071,0.1749,3997.6,3997.5,0.09393266]
[1733576238568,0.1749,3997.6,3997.5,0.26883266]
[1733576238773,0.1749,3997.6,3997.5,0.26883645]
[1733576239069,0.1749,3997.6,3997.5,0.1749]
[1733576239570,0.1749,3997.6,3997.5,0.26883042]
[1733576239969,0.1749,3997.6,3997.5,4.19771632]
[1733576240169,0.1749,3997.6,3997.5,4.1037859]
[1733576240678,0.1749,3997.6,3997.5,4.1977209]
[1733576240974,0.1749,3997.6,3997.5,4.1037859]
[1733576241668,0.1749,3997.6,3997.5,3.9288859]
[1733576242177,0.1749,3997.6,3997.5,4.1037859]
[1733576244273,0.1749,3997.6,3997.5,4.19775237]
[1733576245276,0.3838,3997.7,3997.6,0.1749]
[1733576245478,0.17489,3997.9,3997.8,0.17488]
[1733576245675,0.17489,3997.9,3997.8,4.10215709]
[1733576245973,0.17489,3997.9,3997.8,44.99613656]
[1733576246571,0.17489,3997.9,3997.8,41.06885947]
[1733576246778,0.17489,3997.9,3997.8,40.8]
[1733576246973,0.17489,3997.9,3997.8,40.97489]
[1733576247175,0.17489,3997.9,3997.8,41.06889056]
[1733576247575,0.17489,3997.9,3997.8,0.3938494]
[1733576248275,0.17488,3998.0,3997.9,0.17488]
[1733576248480,0.17488,3998.0,3997.9,0.2189594]
[1733576248776,0.17488,3998.0,3997.9,0.3938494]
[1733576248972,0.17488,3998.0,3997.9,0.80714481]
[1733576249373,0.17488,3998.0,3997.9,0.63225481]
[1733576249568,0.17488,3998.0,3997.9,0.80714481]
[1733576250475,0.17488,3998.0,3997.9,0.63225481]
[1733576251078,0.17488,3998.0,3997.9,0.50725458]
[1733576251277,0.17488,3998.0,3997.9,0.6323052]
[1733576251571,0.17488,3998.0,3997.9,0.8071952]
[1733576252278,0.17488,3998.0,3997.9,0.71314062]
[1733576252576,0.17488,3998.0,3997.9,0.80723715]
[1733576253273,0.17488,3998.0,3997.9,4.73451424]
[1733576253471,0.17488,3998.0,3997.9,0.80723715]
[1733576253674,0.386,3998.4,3997.9,0.63234715]
[1733576253878,0.17487,3998.3,3998.2,0.17487]
[1733576254070,0.17487,3998.3,3998.2,0.39401715]
[1733576256078,0.17487,3998.3,3998.2,0.21914715]
[1733576256682,0.17487,3998.3,3998.2,0.39401715]
[1733576257276,0.17487,3998.3,3998.2,0.21914715]
[1733576258484,0.17487,3998.3,3998.2,0.39401715]
[1733576258685,0.17487,3998.4,3998.3,0.17486]
[1733576258986,0.17487,3998.4,3998.3,0.39400715]
[1733576259181,0.17487,3998.4,3998.3,0.21912869]
[1733576260588,3.11532984,3998.4,3998.3,0.09409653]
[1733576262282,0.17487,3998.3,3998.2,0.17487]
[1733576262578,3.11532984,3998.4,3998.3,0.17487]
[1733576262782,3.11532984,3998.4,3998.3,0.26892979]
[1733576263184,0.17487,3998.4,3998.3,0.26892979]
[1733576263485,0.17487,3998.3,3998.2,4.10214709]
[1733576263680,0.17487,3998.3,3998.2,4.1961983]
[1733576264081,0.4034,3998.5,3998.3,0.17486]
[1733576264082,0.17486,3998.4,3998.3,0.17486]
[1733576264489,0.4034,3998.5,3998.2,3.92727709]
[1733576264490,0.17487,3998.3,3998.2,4.10214709]
[1733576264692,0.17487,3998.3,3998.2,4.19619344]
[1733576265088,0.17487,3998.4,3998.3,0.17486]
[1733576265284,0.17487,3998.3,3998.2,3.92727709]
[1733576265486,0.17487,3998.3,3998.2,4.19618883]
[1733576265893,0.17487,3998.3,3998.2,4.1961885]
[1733576266389,0.4034,3998.5,3998.2,4.02131605]
[1733576266585,0.3742,3998.7,3998.3,4.43205999]
[1733576266586,3.31465984,3998.7,3998.3,4.43205999]
[1733576266892,0.54905,3998.7,3998.6,0.17486]
[1733576267392,3.31415984,3998.9,3998.4,5.23932631]
[1733576267393,2.94045984,3998.9,3998.5,3.93023154]
[1733576267593,0.17484,3998.9,3998.8,0.17484]
[1733576268597,0.4078,3999.0,3998.9,0.17484]
[1733576268992,3.38263,3999.1,3999.0,0.17484]
[1733576269303,0.17483,3999.2,3999.1,0.17483]
[1733576269483,0.17483,3999.2,3999.1,0.26881846]
[1733576269796,0.56703,3999.3,3999.2,0.17483]
[1733576269998,0.17483,3999.3,3999.2,0.26881544]
[1733576270201,4.10640654,3999.3,3999.2,0.26881544]
[1733576270589,0.17483,3999.3,3999.2,0.17483]
[1733576270991,0.17483,3999.3,3999.2,0.26878161]
[1733576271192,0.17483,3999.3,3999.2,0.17483]
[1733576272391,4.74847654,3999.4,3999.0,0.90059477]
[1733576272593,3.1098772,3999.2,3999.1,0.26874967]
[1733576273192,3.1098772,3999.2,3999.0,0.17483]
[1733576273193,2.9350472,3999.2,3999.0,0.17483]
[1733576273395,0.17483,3999.1,3999.0,0.17483]
[1733576273593,0.17483,3999.1,3999.0,0.26873918]
[1733576275699,0.17483,3999.1,3999.0,0.09390918]
[1733576275899,0.17483,3999.1,3999.0,0.26874918]
[1733576277206,2.9350472,3999.3,3999.1,0.17483]
[1733576277207,0.17483,3999.2,3999.1,0.17483]
[1733576278200,0.17484,3999.1,3999.0,0.17484]
[1733576280205,0.99172,3999.4,3999.3,0.17482]
[1733576280409,0.99172,3999.4,3999.3,0.90059477]
[1733576282410,0.58262,3999.4,3999.3,1.07541477]
[1733576284305,0.58262,3999.4,3999.3,0.90059477]
[1733576284903,0.58262,3999.4,3999.3,1.07541477]
[1733576286206,0.58262,3999.4,3999.3,0.90059477]
[1733576286511,0.58262,3999.4,3999.3,1.07541477]
[1733576287408,0.58262,3999.4,3999.3,0.90059477]
[1733576287603,0.4078,3999.4,3998.9,0.8163]
[1733576287810,0.17483,3999.1,3999.0,0.21848063]
[1733576288217,0.17483,3999.1,3999.0,0.09392003]
[1733576289607,0.17484,3998.9,3998.8,3.2078]
[1733576289810,0.17484,3998.9,3998.8,3.30174777]
[1733576290211,0.17484,3998.9,3998.4,1.29389477]
[1733576290212,0.17486,3998.5,3998.4,0.3933]
[1733576290414,0.17486,3998.5,3998.4,0.61188167]
[1733576290610,0.17486,3998.5,3998.4,0.4872608]
[1733576291211,4.92691477,3998.9,3998.2,1.45236477]
[1733576291212,4.92691477,3998.9,3998.2,1.27749477]
[1733576291407,0.17487,3998.3,3998.2,1.27749477]
[1733576291603,0.17487,3998.3,3998.2,1.40213345]
[1733576291909,0.17487,3998.3,3998.2,1.27749477]
[1733576293305,0.17487,3998.3,3998.2,0.90059477]
[1733576293513,0.17487,3998.2,3998.1,0.3953]
[1733576295712,0.17487,3998.3,3998.2,0.17487]
[1733576296121,0.8117,3998.4,3998.1,0.3953]
[1733576296410,0.17487,3998.2,3998.1,0.3953]
[1733576298706,0.17487,3998.2,3998.1,0.57018]
[1733576299420,0.17487,3998.2,3998.1,0.3953]
[1733576302619,0.17487,3998.2,3998.1,0.48905175]
[1733576302817,0.17487,3998.2,3998.1,0.3953]
[1733576303318,0.17487,3998.2,3998.1,0.4890471]
[1733576303822,0.17487,3998.2,3998.1,0.3953]
[1733576310321,4.1596472,3998.4,3997.8,0.4013]
[1733576310523,4.1596472,3998.4,3997.9,0.09374587]
[1733576310524,0.17488,3998.0,3997.9,0.09374587]
[1733576310724,0.17487,3998.2,3997.9,0.0937454]
[1733576310915,0.17489,3997.9,3997.8,1.87988477]
[1733576311120,0.17489,3997.9,3997.8,1.79874775]
[1733576312420,0.17489,3997.9,3997.8,0.49685298]
[1733576313121,0.17489,3997.9,3997.8,0.4031]
[1733576313619,0.1749,3997.5,3997.4,1.29399477]
[1733576313818,0.1749,3997.5,3997.4,1.38776412]
[1733576314924,0.1749,3997.5,3997.4,1.29399477]
[1733576316027,0.1749,3997.5,3997.4,1.46890477]
[1733576317123,0.1749,3997.5,3997.4,1.56269575]
[1733576317918,0.3764,3998.1,3997.4,1.38778575]
[1733576318118,3.2078,3998.2,3997.9,1.07547477]
[1733576318325,3.2078,3998.2,3998.0,1.164]
[1733576318528,0.17488,3998.1,3998.0,1.33888]
[1733576318831,0.17488,3998.1,3998.0,1.4327284]
[1733576319728,3.38267,3998.2,3998.1,0.17488]
[1733576320030,0.17486,3998.5,3998.3,0.17487]
[1733576320226,0.17486,3998.5,3998.4,0.17486]
[1733576320826,0.17485,3998.7,3998.6,0.17485]
[1733576321021,0.7749,3999.0,3998.6,0.90059477]
[1733576321226,0.17485,3998.7,3998.6,1.07544477]
[1733576321427,3.2078,3999.1,3998.6,0.99448362]
[1733576321731,3.2078,3999.1,3998.7,0.39346308]
[1733576321732,0.17485,3998.8,3998.7,0.39346308]
[1733576321935,3.2078,3999.1,3998.7,0.39346308]
[1733576322126,0.17484,3998.9,3998.8,0.2186207]
[1733576322320,0.17484,3998.9,3998.8,0.3934707]
[1733576322525,0.17484,3998.9,3998.8,0.26873996]
[1733576322724,0.17484,3998.9,3998.8,0.29954487]
[1733576322924,0.17484,3998.9,3998.8,0.21855701]
[1733576323124,2.9350472,3999.2,3998.8,0.21855701]
[1733576323328,0.3942,3999.4,3999.3,0.17482]
[1733576323526,0.3942,3999.4,3999.3,0.09386214]
[1733576323732,3.5860472,3999.5,3999.3,0.26868214]
[1733576323733,0.17482,3999.5,3999.3,0.26868214]
[1733576324031,0.17482,3999.5,3999.4,0.09386214]
[1733576324421,0.17482,3999.5,3999.4,0.17482]
[1733576324825,6.5370472,3999.7,3999.5,0.17482]
[1733576325027,3.3292472,3999.7,3999.5,0.17482]
[1733576325233,0.55661,3999.6,3999.5,0.17482]
[1733576325828,0.55661,3999.6,3999.4,1.07541477]
[1733576327633,0.55661,3999.6,3999.5,0.17482]
[1733576329439,0.3818,3999.6,3999.2,3.2078]
[1733576329640,0.17482,3999.4,3999.2,3.38263]
[1733576330639,0.17482,3999.3,3999.2,3.2078]
[1733576331139,0.17484,3998.9,3998.8,3.2078]
[1733576331442,0.90059477,3999.4,3998.9,0.17484]
[1733576331651,0.17484,3999.1,3998.9,0.17484]
[1733576331945,0.17484,3999.0,3998.9,0.17484]
[1733576332243,0.17484,3998.9,3998.8,3.38264]
[1733576332446,0.55054,3998.9,3998.8,3.38264]
[1733576333839,0.90059477,3999.4,3998.8,3.38264]
[1733576334042,0.3995,3999.3,3999.1,0.17483]
[1733576334240,0.3995,3999.3,3998.9,0.90059477]
[1733576334241,0.3995,3999.3,3999.2,0.4025]
[1733576334737,0.57433,3999.3,3999.2,0.4025]
[1733576335146,0.3818,3999.6,3999.2,0.4025]
[1733576335444,0.57431,3999.6,3999.4,0.17482]
[1733576335642,0.17482,3999.5,3999.4,0.17482]
[1733576335842,0.3995,3999.6,3999.2,1.30309477]
[1733576336042,0.17482,3999.4,3999.3,0.17482]
[1733576336743,0.17481,3999.7,3999.2,1.30309477]
[1733576337048,0.17481,3999.7,3999.6,0.17481]
[1733576339145,0.5843,3999.8,3999.7,0.17481]
[1733576340142,0.4095,3999.8,3999.7,0.17481]
[1733576340341,0.4095,3999.8,3999.5,0.90059477]
[1733576340342,0.1748,4000.0,3999.9,0.1748]
[1733576340944,0.1748,4000.0,3999.9,0.5778]
[1733576341151,0.1748,4000.0,3999.9,0.403]
[1733576341355,0.1748,4000.0,3999.9,0.5778]
[1733576341550,0.412,4000.1,3999.9,0.403]
[1733576341849,0.17479,4000.0,3999.9,0.5778]
[1733576342054,0.412,4000.1,3999.9,0.403]
[1733576342258,0.58679,4000.1,4000.0,0.17479]
[1733576342451,0.17479,4000.0,3999.9,0.5778]
[1733576342643,0.412,4000.1,4000.0,0.17479]
[1733576342851,0.58679,4000.1,4000.0,0.17479]
[1733576343251,0.17479,4000.0,3999.9,0.969]